fUSD/lending_fUSD_20250530
["ID","MTS","AMOUNT","RATE_DAILY","PERIOD"]
[363066093,1748565047244,-420.0,0.00021917,2]
[363066095,1748565047253,-420.0,0.00021917,2]
[363066097,1748565047263,-420.0,0.00021917,2]
[363066100,1748565047274,-516.53,0.00021917,2]
[363066102,1748565047283,-1147.03,0.00021917,2]
[363066104,1748565047294,-594.12,0.00021917,2]
[363066106,1748565047303,-420.0,0.00021917,2]
[363066108,1748565047313,-699.0,0.00021917,2]
[363066110,1748565047322,-444.29,0.00021917,2]
[363066112,1748565047332,-2936.98,0.00021917,2]
[363066114,1748565047341,-962.72,0.00021917,2]
[363066115,1748565047351,-567.01,0.00021917,2]
[363066117,1748565047361,-420.0,0.00021917,2]
[363066120,1748565047371,-420.0,0.00021917,2]
[363066121,1748565047381,-420.0,0.00021917,2]
[363066124,1748565047390,-420.0,0.00021917,2]
[363066126,1748565047399,-2232.97,0.00021917,2]
[363066127,1748565047407,-462.11,0.00021917,2]
[363066129,1748565047417,-1505.17,0.00021917,2]
[363066131,1748565047426,-567.39,0.00021917,2]
[363066133,1748565047435,-420.0,0.00021917,2]
[363066135,1748565047444,-3266.53,0.00021917,2]
[363066137,1748565047453,-1697.56,0.00021917,2]
[363066139,1748565047462,-7243.26,0.00021917,2]
[363066141,1748565047472,-1957.49,0.00021917,2]
[363066143,1748565047481,-1135.82,0.00021917,2]
[363066145,1748565047490,-551.78,0.00021917,2]
[363066147,1748565047499,-420.0,0.00021917,2]
[363066149,1748565047510,-420.0,0.00021917,2]
[363066151,1748565047519,-420.0,0.00021917,2]
[363066154,1748565047528,-420.0,0.00021917,2]
[363066156,1748565047538,-1117.47,0.00021917,2]
[363066158,1748565047547,-1510.88,0.00021917,2]
[363066160,1748565047556,-4062.67,0.00021917,2]
[363066162,1748565047565,-420.0,0.00021917,2]
[363066163,1748565047574,-742.64,0.00021917,2]
[363066165,1748565047584,-420.0,0.00021917,2]
[363066167,1748565047593,-616.9,0.00021917,2]
[363066169,1748565047603,-420.0,0.00021917,2]
[363066171,1748565047613,-724.11,0.00021917,2]
[363066174,1748565047622,-420.0,0.00021917,2]
[363066176,1748565047633,-4797.48,0.00021917,2]
[363066178,1748565047643,-420.0,0.00021917,2]
[363066180,1748565047652,-1564.95,0.00021917,2]
[363066182,1748565047661,-600.34,0.00021917,2]
[363066184,1748565047671,-420.0,0.00021917,2]
[363066186,1748565047681,-2956.09,0.00021917,2]
[363066188,1748565047690,-420.0,0.00021917,2]
[363066190,1748565047699,-420.0,0.00021917,2]
[363066192,1748565047709,-43290.53,0.00021917,2]
[363066194,1748565047718,-663.68,0.00021917,2]
[363066196,1748565047728,-9010.04,0.00021917,2]
[363066198,1748565047736,-379.96419233,0.00021917,2]
[363066200,1748565047746,-420.0,0.00021917,2]
[363066202,1748565047755,-428.01644211,0.00021917,2]
[363066204,1748565047765,-1556.17,0.00021917,2]
[363066206,1748565047774,-420.0,0.00021917,2]
[363066208,1748565047784,-420.0,0.00021917,2]
[363066210,1748565047793,-420.0,0.00021917,2]
[363066212,1748565047803,-420.0,0.00021917,2]
[363066214,1748565047812,-6368.97,0.00021917,2]
[363066216,1748565047821,-420.0,0.00021917,2]
[363066218,1748565047830,-703.78,0.00021917,2]
[363066220,1748565047840,-420.0,0.00021917,2]
[363066222,1748565047851,-1121.05,0.00021917,2]
[363066224,1748565047860,-420.0,0.00021917,2]
[363066226,1748565047869,-736.38,0.00021917,2]
[363066228,1748565047878,-1735.62,0.00021917,2]
[363066230,1748565047887,-11508.43,0.00021917,2]
[363066232,1748565047896,-533.45,0.00021917,2]
[363066234,1748565047905,-420.0,0.00021917,2]
[363066236,1748565047914,-2381.68,0.00021917,2]
[363066238,1748565047923,-420.0,0.00021917,2]
[363066240,1748565047933,-11168.45,0.00021917,2]
[363066242,1748565047942,-2999.94,0.00021917,2]
[363066244,1748565047951,-423.12433536,0.00021917,2]
[363066246,1748565047961,-1253.04,0.00021917,2]
[363066248,1748565047969,-420.0,0.00021917,2]
[363066250,1748565047979,-420.0,0.00021917,2]
[363066252,1748565047988,-2174.52,0.00021917,2]
[363066254,1748565047997,-1916.33,0.00021917,2]
[363066256,1748565048007,-1990.37221356,0.00021939,2]
[363066258,1748565048016,-161.41357888,0.00021993,2]
[363066260,1748565048025,-200.0,0.00021999,2]
[363066262,1748565048035,-157.0,0.00022,2]
[363066264,1748565048044,-359.0,0.00022,2]
[363066266,1748565048053,-152.0,0.00022,2]
[363066268,1748565048062,-200.0,0.00022,2]
[363066270,1748565048071,-205.0,0.00022038,2]
[363066272,1748565048081,-912.85,0.00022055,2]
[363066274,1748565048091,-1990.37221356,0.00022061,2]
[363066276,1748565048103,-2709.9503,0.00022091,2]
[363066278,1748565048112,-539.45506362,0.00022091,2]
[363066280,1748565048122,-3534.13071456,0.00022091,2]
[363066283,1748565048132,-211.33017404,0.00022091,2]
[363066285,1748565048142,-1990.37221356,0.00022182,2]
[363066287,1748565048152,-500.0,0.0002219,2]
[363066289,1748565048162,-500.0,0.0002219,2]
[363066291,1748565048172,-500.0,0.0002219,2]
[363066293,1748565048182,-211.07782234,0.0002219,2]
[363066295,1748565048192,-500.0,0.0002219,2]
[363066297,1748565048206,-500.0,0.0002219,2]
[363066299,1748565048215,-167.35499006,0.0002219,2]
[363066301,1748565048225,-500.0,0.0002219,2]
[363066303,1748565048234,-500.0,0.0002219,2]
[363066305,1748565048244,-1696.06273065,0.0002219,3]
[363066307,1748565048254,-178866.51464647,0.00022191,3]
[363066360,1748565048865,-300.0,0.00022191,3]
[363066481,1748565050036,-420.0,0.00021917,2]
[363066483,1748565050046,-650.45,0.00021917,2]
[363066485,1748565050056,-525.47,0.00021917,2]
[363066487,1748565050065,-420.0,0.00021917,2]
[363066489,1748565050075,-420.0,0.00021917,2]
[363066491,1748565050084,-123.84438832,0.00022191,3]
[363066493,1748565050095,-5287.47652151,0.00022191,3]
[363066498,1748565050133,-245866.45860192,0.00022191,3]
[363066528,1748565050415,-49.70962406,0.00021917,2]
[363066530,1748565050428,-370.29037594,0.00021917,2]
[363066532,1748565050438,-8636.03832916,0.00022191,3]
[363066534,1748565050450,-1200.66563768,0.00022191,3]
[363066536,1748565050461,-3931.80525752,0.00022191,3]
[363066538,1748565050472,-1590.9,0.00022191,3]
[363066618,1748565051307,-4630.33,0.00021917,2]
[363066620,1748565051317,-506.15,0.00021917,2]
[363066622,1748565051326,-420.0,0.00021917,2]
[363066624,1748565051335,-420.0,0.00021917,2]
[363066626,1748565051345,-487.1431582,0.00021917,2]
[363066628,1748565051354,-420.0,0.00021917,2]
[363066630,1748565051365,-420.0,0.00021917,2]
[363066632,1748565051375,-420.0,0.00021917,2]
[363066634,1748565051384,-269910.61237153,0.00022191,3]
[363066636,1748565051396,-21099.04762679,0.00022191,3]
[363066638,1748565051407,-858.6849167,0.00022191,3]
[363066642,1748565051429,-35021.31928084,0.00022191,3]
[363066743,1748565052407,-500.0,0.00021817,2]
[363066746,1748565052418,-587.8814765,0.00021817,2]
[363066760,1748565052537,-11931.0470235,0.00021817,2]
[363066762,1748565052547,-420.0,0.00021917,2]
[363066764,1748565052556,-420.0,0.00021917,2]
[363066766,1748565052565,-420.0,0.00021917,2]
[363066768,1748565052574,-420.0,0.00021917,2]
[363066770,1748565052583,-2408.95,0.00021917,2]
[363066772,1748565052592,-420.0,0.00021917,2]
[363066774,1748565052602,-420.0,0.00021917,2]
[363066776,1748565052611,-420.0,0.00021917,2]
[363066778,1748565052620,-420.0,0.00021917,2]
[363066780,1748565052629,-15790.21532646,0.00022191,3]
[363066782,1748565052640,-1497.39987,0.00022191,3]
[363067246,1748565092622,-175.1162575,0.00019433,2]
[363067247,1748565199265,385.085857,0.00025099,120]
[363067248,1748565495497,152.17,0.00013699,2]
[363067250,1748565507367,5562.0,0.0002,5]
[363067252,1748565619429,-177.80822872,0.00019433,2]
[363067253,1748565622611,-178.00708836,0.00019433,2]
[363067254,1748565625784,-166.53552304,0.00019433,2]
[363067255,1748565629733,-196.03290238,0.00019433,2]
[363067256,1748565629757,-122.66431749,0.00019575,2]
[363067257,1748565632402,-77.33568251,0.00019575,2]
[363067258,1748565632425,-113.13150624,0.00019716,2]
[363067259,1748565634960,-86.86849376,0.00019716,2]
[363067260,1748565634982,-200.0,0.00020213,2]
[363067261,1748565635004,-11.67679452,0.00020885,2]
[363067262,1748565637078,-174.23140648,0.0002078,2]
[363067263,1748565661507,-0.88485052,0.0002078,2]
[363067264,1748565661539,-249.68740699,0.00020885,2]
[363067265,1748565662978,-289.45909673,0.00020885,2]
[363067266,1748565665063,-262.10627204,0.00020885,2]
[363067267,1748565668392,-160.14915463,0.00020885,2]
[363067268,1748565670533,-227.81729041,0.00020885,2]
[363067269,1748565672647,-154.15,0.00020885,2]
[363067270,1748565710077,-170.76,0.00020038,2]
[363067271,1748565712279,-34.24,0.00020038,2]
[363067272,1748565712304,-122.08928906,0.00020885,2]
[363067273,1748565890079,-150.0,0.00020861,7]
[363067274,1748565890104,-22.9608848,0.00020885,2]
[363067275,1748565892267,-153.35,0.00020885,2]
[363067276,1748565897312,-190.54596244,0.00020885,2]
[363067278,1748566000951,-169.99,0.00020848,2]
[363067279,1748566000974,-114.42906618,0.00020868,2]
[363067353,1748566231876,-1200.0,0.00019999,2]
[363067354,1748566231886,-33333.0,0.0002,2]
[363067355,1748566231895,-33333.0,0.0002,3]
[363067356,1748566231904,-200.0,0.00020374,2]
[363067357,1748566231914,-450.38,0.00020747,2]
[363067358,1748566231923,-885.57093382,0.00020868,2]
[363067359,1748566231932,-200.0,0.00020876,2]
[363067360,1748566231942,-626.45784838,0.00020885,2]
[363067361,1748566231951,-200.0,0.00020905,2]
[363067362,1748566231960,-720.53,0.00020927,2]
[363067363,1748566231970,-152.17,0.00020951,2]
[363067364,1748566231980,-306.82,0.0002097,2]
[363067365,1748566231989,-192.57,0.00020972,2]
[363067366,1748566231999,-151.0,0.00020972,2]
[363067367,1748566232009,-500.0,0.00020986,2]
[363067368,1748566232018,-250.0,0.00020995,2]
[363067369,1748566232028,-207.4,0.00021129,2]
[363067370,1748566232038,-588.89911124,0.00021206,2]
[363067371,1748566232048,-300.0,0.000214,7]
[363067372,1748566232057,-200.0,0.000214,7]
[363067373,1748566232067,-300.0,0.000214,7]
[363067374,1748566232077,-600.0,0.000215,7]
[363067375,1748566232086,-500.0,0.000215,7]
[363067376,1748566232096,-700.0,0.000215,7]
[363067377,1748566232108,-1000.0,0.000216,7]
[363067378,1748566232117,-800.0,0.000216,7]
[363067379,1748566232127,-1100.0,0.000216,7]
[363067380,1748566232137,-893.5,0.00021697,2]
[363067382,1748566232146,-1300.0,0.000217,7]
[363067384,1748566232155,-1100.0,0.000217,7]
[363067385,1748566232164,-1500.0,0.000217,7]
[363067387,1748566232173,-1600.0,0.000218,7]
[363067389,1748566232183,-1400.0,0.000218,7]
[363067391,1748566232192,-1900.0,0.000218,7]
[363067393,1748566232202,-300.0,0.00021815,2]
[363067395,1748566232211,-1000.0,0.00021817,2]
[363067396,1748566232220,-1316.2014,0.00021817,2]
[363067397,1748566232230,-500.0,0.00021817,2]
[363067398,1748566232239,-8800.0,0.00021817,2]
[363067399,1748566232250,-2709.9503,0.00021817,2]
[363067400,1748566232260,-3332.51360045,0.00021817,2]
[363067401,1748566232270,-156.25191991,0.00021817,2]
[363067402,1748566232280,-3327.20254803,0.00021817,2]
[363067403,1748566232289,-222.49935802,0.00021817,2]
[363067404,1748566232299,-151.0,0.00021865,2]
[363067405,1748566232309,-1115.157653,0.00021865,2]
[363067406,1748566232319,-3327.20254796,0.00021867,2]
[363067407,1748566232328,-3332.51360038,0.00021878,2]
[363067408,1748566232338,-1348.85980204,0.00021878,2]
[363067472,1748566233195,-1050.0,0.00021878,2]
[363067473,1748566233207,-509.25292446,0.00021878,2]
[363067474,1748566233219,-1578.04109096,0.00021878,2]
[363067475,1748566233231,-1209.57983875,0.00021878,2]
[363067476,1748566233241,-1680.0,0.00021881,2]
[363067477,1748566233251,-300.0,0.000219,7]
[363067478,1748566233262,-200.0,0.000219,7]
[363067479,1748566233272,-300.0,0.000219,7]
[363067480,1748566233281,-546.802,0.00021904,2]
[363067481,1748566233291,-355.46448881,0.00021907,2]
[363067482,1748566233315,-303.35853919,0.00021907,2]
[363067483,1748566233327,-4947.93329397,0.00021907,2]
[363067484,1748566233339,-140.70494789,0.00021907,2]
[363067485,1748566233350,-1424.34688988,0.00021907,2]
[363067486,1748566233364,-1555.64999961,0.00021907,2]
[363067487,1748566233394,-289.16311051,0.00021907,2]
[363067488,1748566233404,-1000.0,0.00021916,2]
[363067489,1748566233414,-206.46,0.00021916,2]
[363067490,1748566233424,-236.21451834,0.00021916,2]
[363067491,1748566233435,-3090.98802962,0.00021916,2]
[363067492,1748566233444,-314.03000838,0.00021917,2]
[363067493,1748566233457,-105.96999162,0.00021917,2]
[363067494,1748566233467,-424.24082769,0.00021917,2]
[363067495,1748566233478,-420.0,0.00021917,2]
[363067496,1748566233487,-92.46690169,0.00021917,2]
[363067505,1748566237791,-327.53309831,0.00021917,2]
[363067506,1748566237800,-420.0,0.00021917,2]
[363067507,1748566237810,-421.02651823,0.00021917,2]
[363067508,1748566237820,-420.0,0.00021917,2]
[363067509,1748566237830,-310.42795131,0.00021917,2]
[363067510,1748566237842,-112.63817448,0.00021917,2]
[363067511,1748566237852,-397.30469618,0.00021917,2]
[363067512,1748566237866,-420.0,0.00021917,2]
[363067513,1748566237876,-420.0,0.00021917,2]
[363067514,1748566237885,-420.0,0.00021917,2]
[363067515,1748566237895,-199.05712934,0.00021917,2]
[363067516,1748566237941,-220.94287066,0.00021917,2]
[363067517,1748566237951,-420.0,0.00021917,2]
[363067518,1748566237962,-420.0,0.00021917,2]
[363067519,1748566237971,-420.0,0.00021917,2]
[363067520,1748566237981,-391.98774177,0.00021917,2]
[363067521,1748566238001,-28.01225823,0.00021917,2]
[363067522,1748566238011,-420.0,0.00021917,2]
[363067523,1748566238020,-389.56453619,0.00021917,2]
[363067524,1748566238047,-30.43546381,0.00021917,2]
[363067525,1748566238056,-362.8634621,0.00021917,2]
[363067526,1748566238067,-420.69354359,0.00021917,2]
[363067527,1748566238076,-420.0,0.00021917,2]
[363067528,1748566238086,-421.09985088,0.00021917,2]
[363067529,1748566238096,-420.0,0.00021917,2]
[363067530,1748566238105,-420.0,0.00021917,2]
[363067531,1748566238117,-420.0,0.00021917,2]
[363067532,1748566238126,-8.79216362,0.00021917,2]
[363067533,1748566238138,-411.20783638,0.00021917,2]
[363067534,1748566238147,-420.0,0.00021917,2]
[363067535,1748566238157,-277.54216362,0.00021917,2]
[363067536,1748566238169,-142.45783638,0.00021917,2]
[363067538,1748566238178,-420.0,0.00021917,2]
[363067540,1748566238187,-21.71991861,0.00021917,2]
[363067542,1748566238198,-358.49996601,0.00021917,2]
[363067546,1748566238209,-39.78011538,0.00021917,2]
[363067548,1748566238219,-420.0,0.00021917,2]
[363067550,1748566238228,-420.0,0.00021917,2]
[363067552,1748566238237,-420.0,0.00021917,2]
[363067553,1748566238246,-231.03718081,0.00021917,2]
[363067555,1748566238258,-188.96281919,0.00021917,2]
[363067557,1748566238267,-420.0,0.00021917,2]
[363067560,1748566238276,-420.0,0.00021917,2]
[363067563,1748566238286,-420.0,0.00021917,2]
[363067565,1748566238295,-420.0,0.00021917,2]
[363067566,1748566238306,-420.0,0.00021917,2]
[363067568,1748566238315,-420.0,0.00021917,2]
[363067570,1748566238326,-465.24138076,0.00021917,2]
[363067572,1748566238335,-420.0,0.00021917,2]
[363067574,1748566238344,-420.0,0.00021917,2]
[363067576,1748566238353,-420.0,0.00021917,2]
[363067578,1748566238366,-420.0,0.00021917,2]
[363067580,1748566238375,-549.19,0.00021917,2]
[363067582,1748566238385,-420.0,0.00021917,2]
[363067584,1748566238394,-420.0,0.00021917,2]
[363067586,1748566238403,-561.29,0.00021917,2]
[363067588,1748566238413,-420.0,0.00021917,2]
[363067590,1748566238422,-420.0,0.00021917,2]
[363067592,1748566238432,-420.0,0.00021917,2]
[363067594,1748566238441,-420.0,0.00021917,2]
[363067596,1748566238450,-487.7,0.00021917,2]
[363067598,1748566238460,-492.31610635,0.00021917,2]
[363067600,1748566238470,-422.88959506,0.00021917,2]
[363067602,1748566238479,-420.0,0.00021917,2]
[363067604,1748566238488,-420.0,0.00021917,2]
[363067606,1748566238498,-420.0,0.00021917,2]
[363067608,1748566238507,-560.85,0.00021917,2]
[363067610,1748566238516,-420.0,0.00021917,2]
[363067612,1748566238526,-742.36,0.00021917,2]
[363067614,1748566238535,-420.0,0.00021917,2]
[363067616,1748566238544,-1000.0,0.00021917,2]
[363067617,1748566238553,-348.54753601,0.00021917,2]
[363067620,1748566238567,-164.26246399,0.00021917,2]
[363067622,1748566238577,-497.68111984,0.00021917,2]
[363067624,1748566238590,-838.82303706,0.00021917,2]
[363067633,1748566238702,-359.25696294,0.00021917,2]
[363067635,1748566238711,-206.34303706,0.00021917,2]
[363067637,1748566238726,-213.65696294,0.00021917,2]
[363067639,1748566238735,-420.0,0.00021917,2]
[363067641,1748566238745,-420.0,0.00021917,2]
[363067643,1748566238754,-420.0,0.00021917,2]
[363067644,1748566238762,-420.0,0.00021917,2]
[363067646,1748566238771,-420.0,0.00021917,2]
[363067648,1748566238780,-420.0,0.00021917,2]
[363067649,1748566238790,-420.0,0.00021917,2]
[363067651,1748566238799,-420.0,0.00021917,2]
[363067653,1748566238808,-484.45,0.00021917,2]
[363067655,1748566238818,-153.06348836,0.00021917,2]
[363067656,1748566238827,-420.0,0.00021917,2]
[363067658,1748566238837,-495.36,0.00021917,2]
[363067660,1748566238846,-328.94162293,0.00021917,2]
[363067662,1748566238858,-188.64837707,0.00021917,2]
[363067663,1748566238871,-420.0,0.00021917,2]
[363067665,1748566238881,-420.0,0.00021917,2]
[363067667,1748566238890,-420.0,0.00021917,2]
[363067669,1748566238900,-420.0,0.00021917,2]
[363067688,1748566239136,-420.0,0.00021917,2]
[363067692,1748566239170,-420.0,0.00021917,2]
[363067693,1748566239180,-789.61,0.00021917,2]
[363067695,1748566239189,-420.0,0.00021917,2]
[363067697,1748566239198,-420.0,0.00021917,2]
[363067699,1748566239209,-406.51984163,0.00021917,2]
[363067701,1748566239224,-420.0,0.00021917,2]
[363067703,1748566239233,-420.0,0.00021917,2]
[363067705,1748566239243,-420.0,0.00021917,2]
[363067706,1748566239252,-794.14,0.00021917,2]
[363067708,1748566239261,-420.0,0.00021917,2]
[363067710,1748566239271,-420.0,0.00021917,2]
[363067712,1748566239280,-420.0,0.00021917,2]
[363067713,1748566239289,-420.0,0.00021917,2]
[363067715,1748566239300,-420.0,0.00021917,2]
[363067717,1748566239309,-403.51922932,0.00021917,2]
[363067719,1748566239319,-420.0,0.00021917,2]
[363067721,1748566239330,-763.72,0.00021917,2]
[363067723,1748566239341,-420.0,0.00021917,2]
[363067724,1748566239351,-420.0,0.00021917,2]
[363067726,1748566239363,-420.0,0.00021917,2]
[363067728,1748566239373,-625.4,0.00021917,2]
[363067730,1748566239383,-420.0,0.00021917,2]
[363067732,1748566239393,-420.0,0.00021917,2]
[363067734,1748566239403,-1.15183162,0.00021917,2]
[363067736,1748566239417,-418.84816838,0.00021917,2]
[363067738,1748566239426,-96.70353345,0.00021917,2]
[363067740,1748566239437,-415.12646655,0.00021917,2]
[363067742,1748566239447,-420.0,0.00021917,2]
[363067744,1748566239457,-420.0,0.00021917,2]
[363067746,1748566239466,-420.0,0.00021917,2]
[363067747,1748566239475,-420.0,0.00021917,2]
[363067749,1748566239485,-420.0,0.00021917,2]
[363067751,1748566239495,-420.0,0.00021917,2]
[363067753,1748566239504,-420.0,0.00021917,2]
[363067755,1748566239513,-420.0,0.00021917,2]
[363067757,1748566239522,-420.0,0.00021917,2]
[363067759,1748566239532,-500.8,0.00021917,2]
[363067761,1748566239542,-420.0,0.00021917,2]
[363067762,1748566239551,-420.0,0.00021917,2]
[363067764,1748566239560,-420.0,0.00021917,2]
[363067766,1748566239570,-420.0,0.00021917,2]
[363067768,1748566239579,-420.0,0.00021917,2]
[363067770,1748566239592,-527.17,0.00021917,2]
[363067771,1748566239601,-420.0,0.00021917,2]
[363067773,1748566239612,-420.0,0.00021917,2]
[363067775,1748566239621,-420.0,0.00021917,2]
[363067778,1748566239631,-420.0,0.00021917,2]
[363067781,1748566239641,-420.0,0.00021917,2]
[363067782,1748566239650,-420.0,0.00021917,2]
[363067784,1748566239661,-420.0,0.00021917,2]
[363067786,1748566239670,-420.0,0.00021917,2]
[363067788,1748566239680,-427.28679114,0.00021917,2]
[363067790,1748566239689,-428.07394457,0.00021917,2]
[363067792,1748566239698,-420.0,0.00021917,2]
[363067794,1748566239708,-420.0,0.00021917,2]
[363067795,1748566239716,-593.75,0.00021917,2]
[363067797,1748566239726,-420.0,0.00021917,2]
[363067800,1748566239735,-564.09,0.00021917,2]
[363067802,1748566239745,-156.963551,0.00021917,2]
[363067804,1748566239756,-420.0,0.00021917,2]
[363067806,1748566239766,-329.68288899,0.00021917,2]
[363067808,1748566239776,-420.0,0.00021917,2]
[363067809,1748566239786,-570.82,0.00021917,2]
[363067811,1748566239796,-420.0,0.00021917,2]
[363067813,1748566239806,-420.0,0.00021917,2]
[363067816,1748566239816,-549.03,0.00021917,2]
[363067818,1748566239827,-792.7,0.00021917,2]
[363067821,1748566239836,-420.0,0.00021917,2]
[363067823,1748566239846,-420.0,0.00021917,2]
[363067825,1748566239855,-1857.46058,0.00021917,2]
[363067826,1748566239867,-1733.318007,0.00021917,2]
[363067828,1748566239877,-420.0,0.00021917,2]
[363067830,1748566239886,-480.66,0.00021917,2]
[363067832,1748566239895,-420.0,0.00021917,2]
[363067834,1748566239905,-1628.45,0.00021917,2]
[363067836,1748566239915,-499.7,0.00021917,2]
[363067838,1748566239925,-418.94,0.00021917,2]
[363067839,1748566239934,-420.0,0.00021917,2]
[363067841,1748566239944,-420.0,0.00021917,2]
[363067843,1748566239953,-420.0,0.00021917,2]
[363067845,1748566239962,-420.0,0.00021917,2]
[363067847,1748566239971,-420.0,0.00021917,2]
[363067849,1748566239981,-734.38,0.00021917,2]
[363067850,1748566239990,-250.02871901,0.00021917,2]
[363067852,1748566240000,-443.17396323,0.00021917,2]
[363067854,1748566240010,-420.0,0.00021917,2]
[363067856,1748566240020,-420.0,0.00021917,2]
[363067858,1748566240030,-536.49985645,0.00021917,2]
[363067860,1748566240040,-589.37,0.00021917,2]
[363067862,1748566240050,-978.23,0.00021917,2]
[363067864,1748566240059,-420.0,0.00021917,2]
[363067866,1748566240070,-420.0,0.00021917,2]
[363067867,1748566240079,-513.24,0.00021917,2]
[363067869,1748566240089,-420.0,0.00021917,2]
[363067871,1748566240099,-420.0,0.00021917,2]
[363067873,1748566240115,-420.0,0.00021917,2]
[363067875,1748566240128,-1107.87,0.00021917,2]
[363067877,1748566240137,-420.0,0.00021917,2]
[363067879,1748566240148,-240.0,0.00021917,2]
[363067881,1748566240158,-1294.45,0.00021917,2]
[363067882,1748566240168,-422.85972222,0.00021917,2]
[363067884,1748566240178,-420.0,0.00021917,2]
[363067886,1748566240188,-436.98754532,0.00021917,2]
[363067888,1748566240210,-423.65598072,0.00021917,2]
[363067890,1748566240220,-600.34,0.00021917,2]
[363067891,1748566240231,-288.30206679,0.00021917,2]
[363067892,1748566240243,-526.12,0.00021917,2]
[363067893,1748566240253,-420.0,0.00021917,2]
[363067894,1748566240262,-1392.48,0.00021917,2]
[363067895,1748566240273,-421.47576786,0.00021917,2]
[363067896,1748566240283,-420.0,0.00021917,2]
[363067897,1748566240293,-420.0,0.00021917,2]
[363067898,1748566240302,-420.0,0.00021917,2]
[363067899,1748566240312,-421.84590564,0.00021917,2]
[363067900,1748566240322,-1330.59,0.00021917,2]
[363067901,1748566240331,-420.0,0.00021917,2]
[363067902,1748566240342,-523.84,0.00021917,2]
[363067903,1748566240352,-422.70375871,0.00021917,2]
[363067904,1748566240363,-1325.16,0.00021917,2]
[363067905,1748566240373,-1820.45,0.00021917,2]
[363067906,1748566240382,-817.89,0.00021917,2]
[363067908,1748566240391,-741.14,0.00021917,2]
[363067909,1748566240401,-420.0,0.00021917,2]
[363067911,1748566240410,-420.0,0.00021917,2]
[363067913,1748566240420,-1121.05,0.00021917,2]
[363067915,1748566240429,-420.0,0.00021917,2]
[363067917,1748566240438,-420.0,0.00021917,2]
[363067919,1748566240447,-420.0,0.00021917,2]
[363067921,1748566240460,-857.17,0.00021917,2]
[363067923,1748566240469,-420.0,0.00021917,2]
[363067925,1748566240479,-1567.15,0.00021917,2]
[363067927,1748566240488,-420.0,0.00021917,2]
[363067929,1748566240497,-420.0,0.00021917,2]
[363067931,1748566240506,-554.13,0.00021917,2]
[363067933,1748566240516,-420.0,0.00021917,2]
[363067935,1748566240526,-513.45485487,0.00021917,2]
[363067937,1748566240535,-729.4,0.00021917,2]
[363067939,1748566240544,-420.0,0.00021917,2]
[363067941,1748566240554,-1472.36,0.00021917,2]
[363067943,1748566240563,-533.36,0.00021917,2]
[363067945,1748566240573,-420.0,0.00021917,2]
[363067947,1748566240585,-503.53,0.00021917,2]
[363067949,1748566240594,-420.0,0.00021917,2]
[363067951,1748566240603,-420.0,0.00021917,2]
[363067953,1748566240615,-420.0,0.00021917,2]
[363067955,1748566240624,-904.28,0.00021917,2]
[363067957,1748566240634,-785.4,0.00021917,2]
[363067959,1748566240643,-698.44,0.00021917,2]
[363067961,1748566240654,-420.0,0.00021917,2]
[363067963,1748566240664,-1522.67,0.00021917,2]